fUST/lending_fUST_20251230
["ID","MTS","AMOUNT","RATE_DAILY","PERIOD"]
[400053701,1767053982318,-10000.01,0.00013282,2]
[400053702,1767053989677,5000.0,0.00013172,2]
[400053703,1767053993729,320.6,0.00012329,2]
[400053704,1767053996218,-371.66514857,0.00013182,2]
[400053705,1767053997692,5000.0,0.00013172,2]
[400053706,1767054000284,-1502.07036263,0.00013182,2]
[400053707,1767054000334,-6995.86927474,0.00013282,2]
[400053708,1767054000407,-10000.01,0.00013282,2]
[400053709,1767054000548,-10000.01,0.00013282,2]
[400053710,1767054000660,-10000.01,0.00013282,2]
[400053711,1767054000804,-10000.01,0.00013282,2]
[400053712,1767054000945,-10000.01,0.00013282,2]
[400053713,1767054001073,-10000.01,0.00013282,2]
[400053714,1767054001205,-300.0,0.00013281,2]
[400053715,1767054001250,-9400.01,0.00013282,2]
[400053716,1767054001444,-10000.01,0.00013282,2]
[400053717,1767054006175,-500.0,0.0001328,2]
[400053718,1767054006206,-500.0,0.0001328,2]
[400053719,1767054006239,-500.0,0.0001328,2]
[400053720,1767054006270,-500.0,0.0001328,2]
[400053721,1767054006303,-500.0,0.0001328,2]
[400053722,1767054006335,-500.0,0.0001328,2]
[400053723,1767054006368,-500.0,0.0001328,2]
[400053724,1767054006399,-500.0,0.0001328,2]
[400053725,1767054006429,-500.0,0.0001328,2]
[400053726,1767054006460,-500.0,0.0001328,2]
[400053727,1767054006565,-500.0,0.0001328,2]
[400053728,1767054006597,-500.0,0.0001328,2]
[400053729,1767054006630,-382.02052361,0.0001328,2]
[400053730,1767054006663,-500.0,0.0001328,2]
[400053731,1767054006694,-500.0,0.0001328,2]
[400053732,1767054006729,-517.90721476,0.00013281,2]
[400053733,1767054006760,-300.0,0.00013281,2]
[400053734,1767054006791,-300.0,0.00013281,2]
[400053735,1767054007111,-0.01,0.00013282,2]
[400053736,1767054007140,-3000.15452326,0.00013282,2]
[400053737,1767054007160,-10000.01,0.00013282,2]
[400053738,1767054007186,-10000.01,0.00013282,2]
[400053739,1767054007205,-10000.01,0.00013282,2]
[400053740,1767054007239,-10000.01,0.00013282,2]
[400053741,1767054007255,-10000.01,0.00013282,2]
[400053742,1767054007286,-10000.01,0.00013282,2]
[400053743,1767054007316,-10000.01,0.00013282,2]
[400053744,1767054013519,5000.0,0.00013172,2]
[400053745,1767054021305,5000.0,0.00013172,2]
[400053746,1767054035092,633.85469,0.000285,120]
[400053747,1767054044907,5000.0,0.00013172,2]
[400053748,1767054047867,635.88,0.00013016,2]
[400053749,1767054067985,5000.0,0.00013172,2]
[400053750,1767054091034,5000.0,0.00013172,2]
[400053751,1767054114550,5000.0,0.00013172,2]
[400053752,1767054128633,627.79,0.00012991,2]
[400053753,1767054207811,619.8,0.00013014,2]
[400053754,1767054288278,611.91,0.00012991,2]
[400053755,1767054293894,160.0,0.00028767,120]
[400053756,1767054310759,160.0,0.00028767,120]
[400053757,1767054325407,160.0,0.00028767,120]
[400053759,1767054345191,160.0,0.00028767,120]
[400053760,1767054360202,180.0,0.00028767,120]
[400053761,1767054368828,604.12,0.00012994,2]
[400053762,1767054374071,182.0,0.00028767,120]
[400053763,1767054432233,-220.40379971,0.00013178,2]
[400053765,1767054434316,-175.27605261,0.00013178,2]
[400053766,1767054438148,-158.91394739,0.00013178,2]
[400053767,1767054440155,-396.8660558,0.00013178,2]
[400053768,1767054446553,-166.76,0.00013178,2]
[400053769,1767054448575,-500.49327505,0.00013178,2]
[400053770,1767054449762,600.25,0.00013019,2]
[400053771,1767054450284,630.8221682,0.00013172,2]
[400053772,1767054454111,-165.87439691,0.00013178,2]
[400053773,1767054455550,-206.58,0.00013178,2]
[400053776,1767054590522,2883.30220438,0.00013172,2]
[400053777,1767054610100,609.93,0.00013157,2]
[400053809,1767054631830,-300.0,0.0001318,2]
[400053811,1767054631841,-173.11340886,0.0001318,2]
[400053813,1767054631854,-126.88659114,0.0001318,2]
[400053815,1767054631864,-300.0,0.0001318,2]
[400053817,1767054631877,-300.0,0.0001318,2]
[400053819,1767054631887,-300.0,0.0001318,2]
[400053821,1767054631897,-607.0,0.0001318,2]
[400053823,1767054631906,-39412.11133227,0.00013181,2]
[400053841,1767054638089,-500.0,0.0001318,2]
[400053842,1767054638099,-500.0,0.0001318,2]
[400053843,1767054638109,-240.942183,0.0001318,2]
[400053844,1767054638119,-500.0,0.0001318,2]
[400053845,1767054638129,-500.0,0.0001318,2]
[400053846,1767054638139,-500.0,0.0001318,2]
[400053847,1767054638148,-477.59011943,0.0001318,2]
[400053848,1767054638158,-500.0,0.0001318,2]
[400053849,1767054638168,-500.0,0.0001318,2]
[400053850,1767054638179,-500.0,0.0001318,2]
[400053851,1767054638189,-500.0,0.0001318,2]
[400053852,1767054638200,-500.0,0.0001318,2]
[400053853,1767054638210,-500.0,0.0001318,2]
[400053854,1767054638220,-167.28371939,0.0001318,2]
[400053855,1767054638230,-500.0,0.0001318,2]
[400053856,1767054638240,-500.0,0.0001318,2]
[400053857,1767054638250,-500.0,0.0001318,2]
[400053858,1767054638261,-500.0,0.0001318,2]
[400053859,1767054638271,-500.0,0.0001318,2]
[400053860,1767054638281,-500.0,0.0001318,2]
[400053861,1767054638291,-500.0,0.0001318,2]
[400053862,1767054638300,-500.0,0.0001318,2]
[400053863,1767054638310,-500.0,0.0001318,2]
[400053864,1767054638319,-500.0,0.0001318,2]
[400053865,1767054638329,-500.0,0.0001318,2]
[400053866,1767054638338,-500.0,0.0001318,2]
[400053867,1767054638348,-500.0,0.0001318,2]
[400053868,1767054638357,-500.0,0.0001318,2]
[400053869,1767054638367,-500.0,0.0001318,2]
[400053870,1767054638376,-450.34390428,0.0001318,2]
[400053871,1767054638387,-500.0,0.0001318,2]
[400053872,1767054638396,-500.0,0.0001318,2]
[400053873,1767054638406,-500.0,0.0001318,2]
[400053874,1767054638415,-500.0,0.0001318,2]
[400053875,1767054638425,-500.0,0.0001318,2]
[400053876,1767054638434,-500.0,0.0001318,2]
[400053877,1767054638443,-500.0,0.0001318,2]
[400053878,1767054638457,-500.0,0.0001318,2]
[400053879,1767054638467,-500.0,0.0001318,2]
[400053880,1767054638476,-500.0,0.0001318,2]
[400053881,1767054638486,-500.0,0.0001318,2]
[400053882,1767054638495,-500.0,0.0001318,2]
[400053883,1767054638504,-500.0,0.0001318,2]
[400053884,1767054638514,-500.0,0.0001318,2]
[400053885,1767054638523,-500.0,0.0001318,2]
[400053886,1767054638533,-500.0,0.0001318,2]
[400053887,1767054638543,-500.0,0.0001318,2]
[400053888,1767054638552,-500.0,0.0001318,2]
[400053889,1767054638562,-500.0,0.0001318,2]
[400053890,1767054638571,-363.22320335,0.0001318,2]
[400053891,1767054638580,-500.0,0.0001318,2]
[400053892,1767054638591,-500.0,0.0001318,2]
[400053893,1767054638600,-621.3405185,0.0001318,2]
[400053894,1767054638610,-500.0,0.0001318,2]
[400053895,1767054638620,-500.0,0.0001318,2]
[400053896,1767054638630,-500.0,0.0001318,2]
[400053897,1767054638640,-500.0,0.0001318,2]
[400053898,1767054638650,-500.0,0.0001318,2]
[400053899,1767054638660,-500.0,0.0001318,2]
[400053900,1767054638671,-500.0,0.0001318,2]
[400053901,1767054638681,-500.0,0.0001318,2]
[400053902,1767054638692,-500.0,0.0001318,2]
[400053903,1767054638703,-500.0,0.0001318,2]
[400053904,1767054638713,-500.0,0.0001318,2]
[400053905,1767054638723,-278.60486668,0.0001318,2]
[400053906,1767054638733,-500.0,0.0001318,2]
[400053907,1767054638742,-500.0,0.0001318,2]
[400053908,1767054638752,-500.0,0.0001318,2]
[400053909,1767054638762,-500.0,0.0001318,2]
[400053910,1767054638771,-500.0,0.0001318,2]
[400053911,1767054638780,-500.0,0.0001318,2]
[400053912,1767054638790,-500.0,0.0001318,2]
[400053913,1767054638799,-500.0,0.0001318,2]
[400053914,1767054638809,-500.0,0.0001318,2]
[400053915,1767054638818,-500.0,0.0001318,2]
[400053916,1767054638828,-500.0,0.0001318,2]
[400053917,1767054638838,-960587.88866773,0.00013181,2]
[400053918,1767054638848,-1200.0,0.00013272,2]
[400053919,1767054638858,-500.0,0.00013273,2]
[400053920,1767054638868,-500.0,0.00013273,2]
[400053921,1767054638880,-254.07770243,0.00013273,2]
[400053922,1767054638892,-500.0,0.00013273,2]
[400053923,1767054638902,-540.12084556,0.00013273,2]
[400053924,1767054638911,-50000.0,0.00013278,2]
[400053925,1767054638922,-2600.3767643,0.00013281,2]
[400053926,1767054638931,-11913.3098763,0.00013281,2]
[400053927,1767054638941,-44211.6063462,0.00013282,2]
[400053928,1767054638952,-2883.30220435,0.00013492,2]
[400053929,1767054638963,-300.0,0.00013547,2]
[400053930,1767054638973,-300.0,0.00013547,2]
[400053931,1767054638984,-300.0,0.00013547,2]
[400053932,1767054638993,-300.0,0.00013547,2]
[400053933,1767054639003,-300.0,0.00013547,2]
[400053934,1767054639014,-163.48675578,0.00013673,2]
[400053935,1767054639023,-500.0,0.00013698,2]
[400053936,1767054639033,-511.31418948,0.00013698,2]
[400053937,1767054639043,-627.95351682,0.00013698,2]
[400053938,1767054639053,-500.0,0.00013698,2]
[400053939,1767054639064,-500.0,0.00013698,2]
[400053940,1767054639075,-500.0,0.00013698,2]
[400053941,1767054639086,-500.0,0.00013698,2]
[400053942,1767054639097,-500.0,0.00013698,2]
[400053943,1767054639109,-500.0,0.00013698,2]
[400053944,1767054639119,-500.0,0.00013698,2]
[400053945,1767054639129,-500.0,0.00013698,2]
[400053946,1767054639138,-500.0,0.00013698,2]
[400053947,1767054639149,-623.26,0.00013698,2]
[400053948,1767054639159,-623.26,0.00013698,2]
[400053949,1767054639169,-623.26,0.00013698,2]
[400053950,1767054639179,-623.26,0.00013698,2]
[400053951,1767054639189,-623.26,0.00013698,2]
[400053952,1767054639200,-623.26,0.00013698,2]
[400053953,1767054639210,-623.26,0.00013698,2]
[400053954,1767054639219,-623.26,0.00013698,2]
[400053955,1767054639229,-623.26,0.00013698,2]
[400053956,1767054639239,-623.26,0.00013698,2]
[400053957,1767054639249,-623.26,0.00013698,2]
[400053958,1767054639259,-623.26,0.00013698,2]
[400053959,1767054639270,-623.26,0.00013698,2]
[400053960,1767054639280,-623.26,0.00013698,2]
[400053961,1767054639290,-623.26,0.00013698,2]
[400053962,1767054639299,-623.26,0.00013698,2]
[400053963,1767054639308,-623.26,0.00013698,2]
[400053964,1767054639317,-623.26,0.00013698,2]
[400053965,1767054639327,-623.26,0.00013698,2]
[400053966,1767054639336,-623.26,0.00013698,2]
[400053967,1767054639346,-623.26,0.00013698,2]
[400053968,1767054639355,-623.26,0.00013698,2]
[400053969,1767054639365,-623.26,0.00013698,2]
[400053970,1767054639374,-623.4449749,0.00013698,2]
[400053971,1767054639383,-500.0,0.00013698,2]
[400053972,1767054639393,-500.0,0.00013698,2]
[400053973,1767054639402,-500.0,0.00013698,2]
[400053974,1767054639412,-500.0,0.00013698,2]
[400053975,1767054639421,-500.0,0.00013698,2]
[400053976,1767054639430,-500.0,0.00013698,2]
[400053977,1767054639439,-500.0,0.00013698,2]
[400053979,1767054639448,-500.0,0.00013698,2]
[400053981,1767054639458,-500.0,0.00013698,2]
[400053983,1767054639471,-500.0,0.00013698,2]
[400053985,1767054639480,-500.0,0.00013698,2]
[400053986,1767054639489,-500.0,0.00013698,2]
[400053987,1767054639499,-500.0,0.00013698,2]
[400053988,1767054639508,-500.0,0.00013698,2]
[400053989,1767054639518,-500.0,0.00013698,2]
[400053990,1767054639528,-500.0,0.00013698,2]
[400053991,1767054639537,-500.0,0.00013698,2]
[400053992,1767054639546,-500.0,0.00013698,2]
[400053993,1767054639555,-404.88,0.00013698,2]
[400053994,1767054639565,-1348.5643003,0.00013699,2]
[400053995,1767054639574,-500.0,0.00013699,2]
[400053996,1767054639583,-500.0,0.00013699,2]
[400053997,1767054639592,-500.0,0.00013699,2]
[400053998,1767054639602,-500.0,0.00013699,2]
[400053999,1767054639611,-500.0,0.00013699,2]
[400054000,1767054639620,-636.58480261,0.00013699,2]
[400054001,1767054639629,-500.30541626,0.00013699,2]
[400054002,1767054639639,-500.0,0.00013699,2]
[400054003,1767054639648,-518.68115133,0.00013699,2]
[400054005,1767054639658,-506.69804643,0.00013699,2]
[400054007,1767054639667,-500.0,0.00013699,2]
[400054008,1767054639677,-340.03522917,0.00013699,2]
[400054009,1767054639686,-500.20372006,0.00013699,2]
[400054011,1767054639696,-173.33607365,0.00013699,2]
[400054012,1767054639705,-501.41401372,0.00013699,2]
[400054014,1767054639715,-500.0,0.00013699,2]
[400054015,1767054639724,-500.5438368,0.00013699,2]
[400054016,1767054639734,-500.77567295,0.00013699,2]
[400054018,1767054639743,-599.35395839,0.00013699,2]
[400054020,1767054639753,-500.65201175,0.00013699,2]
[400054021,1767054639762,-501.54886217,0.00013699,2]
[400054022,1767054639772,-223.65384929,0.00013699,2]
[400054024,1767054639782,-500.0,0.00013699,2]
[400054026,1767054639791,-500.0,0.00013699,2]
[400054027,1767054639801,-500.0,0.00013699,2]
[400054029,1767054639810,-500.0,0.00013699,2]
[400054031,1767054639822,-500.0,0.00013699,2]
[400054033,1767054639831,-500.0,0.00013699,2]
[400054035,1767054639840,-159.38821259,0.00013699,2]
[400054036,1767054639850,-500.3719998,0.00013699,2]
[400054038,1767054639860,-500.0,0.00013699,2]
[400054040,1767054639869,-455.82336012,0.00013699,2]
[400054041,1767054639881,-500.0,0.00013699,2]
[400054042,1767054639891,-500.0,0.00013699,2]
[400054043,1767054639900,-523.8766182,0.00013699,2]
[400054044,1767054639909,-166.13136323,0.00013699,2]
[400054045,1767054639919,-500.32148679,0.00013699,2]
[400054046,1767054639928,-500.0,0.00013699,2]
[400054047,1767054639938,-500.0,0.00013699,2]
[400054048,1767054639948,-523.56380716,0.00013699,2]
[400054049,1767054639957,-500.0,0.00013699,2]
[400054050,1767054639967,-500.0,0.00013699,2]
[400054051,1767054639976,-1219.86,0.00013784,2]
[400054052,1767054639986,-2883.30220435,0.00013812,2]
[400054053,1767054639995,-500.0,0.00013821,2]
[400054054,1767054640004,-399.99234148,0.00013821,2]
[400054057,1767054640121,-719.01088526,0.00013945,2]
[400054058,1767054640132,-250.0,0.00014,2]
[400054059,1767054640142,-2883.30220435,0.00014131,2]
[400054060,1767054640151,-400.0,0.00014247,2]
[400054062,1767054640161,-580.75858867,0.00014247,2]
[400054064,1767054640170,-1000.0,0.00014247,2]
[400054065,1767054640180,-500.0,0.00014247,2]
[400054066,1767054640189,-1000.0,0.00014247,2]
[400054067,1767054640200,-684.55482318,0.00014247,2]
[400054068,1767054640209,-191.58046107,0.00014247,2]
[400054069,1767054640219,-1000.0,0.00014247,2]
[400054070,1767054640228,-1000.0,0.00014247,2]
[400054071,1767054640238,-333.64434173,0.00014247,2]
[400054072,1767054640247,-1000.0,0.00014247,2]
[400054073,1767054640256,-1000.0,0.00014247,2]
[400054074,1767054640265,-1829.78,0.0001441,2]
[400054075,1767054640275,-2883.30220435,0.00014451,2]
[400054076,1767054640284,-420.0,0.00014451,2]
[400054077,1767054640293,-377.0,0.00014498,2]
[400054078,1767054640303,-4502.1938627,0.00014502,2]
[400054079,1767054640312,-1680.0,0.00014551,2]
[400054080,1767054640322,-500.0,0.00014795,2]
[400054081,1767054640331,-1500.0,0.00014795,2]
[400054082,1767054640341,-1500.0,0.00014795,2]
[400054083,1767054640350,-2658.2187406,0.00014981,2]
[400054084,1767054640359,-9864.9428044,0.00014982,2]
[400054085,1767054640369,-250.0,0.00015,2]
[400054086,1767054640378,-100000.0,0.00015028,2]
[400054087,1767054640390,-2439.71,0.00015037,2]
[400054088,1767054640400,-241.032427,0.00015068,2]
[400054089,1767054640409,-177.0,0.00015227,2]
[400054090,1767054640418,-1181.68932168,0.00015268,2]
[400054091,1767054640428,-2000.0,0.00015342,2]
[400054092,1767054640438,-2000.0,0.00015342,2]
[400054093,1767054640447,-593.1287733,0.0001536,2]
[400054094,1767054640457,-2201.1662678,0.00015362,2]
[400054095,1767054640467,-401.91065653,0.000155,4]
[400054096,1767054640477,-3049.64,0.00015663,2]
[400054097,1767054640486,-587.0,0.00015845,2]
[400054098,1767054640496,-2500.0,0.0001589,2]
[400054099,1767054640505,-2500.0,0.0001589,2]
[400054100,1767054640515,-250.0,0.00016,2]
[400054101,1767054640524,-3659.57,0.0001629,2]
[400054102,1767054640534,-500.0,0.00016438,2]
[400054103,1767054640544,-500.0,0.00016438,2]
[400054104,1767054640553,-500.0,0.00016438,2]
[400054105,1767054640563,-500.0,0.00016438,2]
[400054106,1767054640573,-500.0,0.00016438,2]
[400054107,1767054640583,-500.0,0.00016438,2]
[400054108,1767054640592,-439.97592923,0.00016438,2]
[400054109,1767054640602,-3000.0,0.00016438,2]
[400054110,1767054640611,-3000.0,0.00016438,2]
[400054111,1767054640621,-4269.49,0.00016916,2]
[400054112,1767054640630,-3500.0,0.00016986,2]
[400054113,1767054640639,-3500.0,0.00016986,2]
[400054114,1767054640648,-796.8678,0.00017059,2]
[400054115,1767054640658,-204.0,0.00017227,2]
[400054116,1767054640667,-823.0,0.00017374,2]
[400054117,1767054640678,-250.0,0.00017412,2]
[400054118,1767054640687,-4000.0,0.00017534,2]
[400054119,1767054640697,-4000.0,0.00017534,2]
[400054120,1767054640707,-4879.42,0.00017543,2]
[400054121,1767054640716,-501.1454694,0.00018,2]
[400054122,1767054640726,-4500.0,0.00018082,2]
[400054123,1767054640735,-1324.67357446,0.00018082,2]
[400054124,1767054640744,-5489.35,0.00018169,2]
[400054125,1767054640753,-1181.68932168,0.00018288,2]
[400054126,1767054640763,-241.032427,0.00018493,2]
[400054127,1767054640773,-5000.0,0.0001863,2]
[400054128,1767054640782,-6099.28,0.00018796,2]
[400054129,1767054640793,-32469.34588868,0.00019,2]
[400054130,1767054640802,-2603.49,0.00019,2]
[400054131,1767054640811,-17928.43207283,0.00019,2]
[400054132,1767054640821,-1152.0,0.0001905,2]
[400054133,1767054640830,-500.0,0.000191,2]
[400054134,1767054640840,-160.0,0.00019125,2]
[400054135,1767054640849,-500.0,0.00019178,2]
[400054136,1767054640859,-500.0,0.00019178,2]
[400054137,1767054640868,-500.0,0.00019178,2]
[400054138,1767054640879,-500.0,0.00019178,2]
[400054139,1767054640891,-500.0,0.00019178,2]
[400054140,1767054640901,-500.0,0.00019178,2]
[400054141,1767054640910,-500.0,0.00019178,2]
[400054142,1767054640920,-500.0,0.00019178,2]
[400054143,1767054640930,-500.0,0.00019178,2]
[400054144,1767054640940,-500.0,0.00019178,2]
[400054145,1767054640951,-413.6278121,0.00019178,2]
[400054146,1767054640963,-5500.0,0.00019178,2]
[400054147,1767054640972,-1802.09,0.000192,2]
[400054148,1767054640982,-166.47,0.000192,2]
[400054149,1767054640991,-231.0,0.00019227,2]
[400054150,1767054641001,-12494.59,0.000193,2]
[400054151,1767054641010,-160.2,0.000193,2]
[400054152,1767054641020,-156.97,0.000193,2]
[400054153,1767054641029,-300.0,0.00019315,2]
[400054154,1767054641039,-450.0,0.00019452,2]
[400054155,1767054641048,-600.0,0.00019589,2]
[400054156,1767054641058,-271.04640484,0.00019667,2]
[400054157,1767054641068,-260.0,0.00019673,2]
[400054158,1767054641077,-706.1484877,0.00019726,2]
[400054159,1767054641087,-6000.0,0.00019726,2]
[400054160,1767054641097,-618.0,0.0002,2]
[400054161,1767054641107,-2000.0,0.0002,7]
[400054162,1767054641116,-360.0,0.00020221,2]
[400054163,1767054641126,-4692.89424911,0.00020274,2]
[400054164,1767054641135,-160.0,0.00020479,2]
[400054165,1767054641144,-460.0,0.00020769,2]
[400054166,1767054641154,-210.0,0.00020877,3]
[400054167,1767054641163,-1613.0,0.00020888,2]
[400054168,1767054641173,-30990.94257471,0.00021,2]
[400054169,1767054641182,-321.5,0.00021049,2]
[400054170,1767054641192,-1802.09,0.000212,2]
[400054171,1767054641203,-258.0,0.00021227,2]
[400054172,1767054641212,-1181.68932168,0.00021307,2]
[400054173,1767054641222,-560.0,0.00021317,2]
[400054174,1767054641232,-10000.0,0.00021817,2]
[400054175,1767054641241,-15277.58765553,0.00021817,2]
[400054176,1767054641251,-2000.0,0.00021818,7]
[400054177,1767054641260,-500.0,0.00021832,2]
[400054178,1767054641269,-660.0,0.00021865,2]
[400054179,1767054641279,-515.43639332,0.00021917,2]
[400054180,1767054641288,-504.68438666,0.00021917,2]
[400054181,1767054641298,-213.22941767,0.00021917,2]
[400054182,1767054641308,-500.0,0.00021917,2]
[400054183,1767054641317,-404.40678334,0.00021917,2]
[400054184,1767054641326,-333.76916282,0.00021917,2]
[400054185,1767054641336,-356.83985831,0.00021917,2]
[400054186,1767054641345,-330.97691951,0.00021917,2]
[400054187,1767054641355,-362.31823846,0.00021917,2]
[400054188,1767054641364,-1000.0,0.00021917,2]
[400054189,1767054641373,-268.15903385,0.00021917,2]
[400054190,1767054641383,-482.52139185,0.00021917,2]
[400054191,1767054641393,-253.53306599,0.00021917,2]
[400054192,1767054641402,-240.09370217,0.00021917,2]
[400054193,1767054641412,-486.31154178,0.00021917,2]
[400054194,1767054641421,-220.40876257,0.00021917,2]
[400054195,1767054641430,-500.0,0.00021917,2]
[400054196,1767054641439,-421.70731069,0.00021917,2]
[400054197,1767054641450,-225.77006582,0.00021917,2]
[400054198,1767054641460,-500.0,0.00021917,2]
[400054199,1767054641470,-269.01977505,0.00021917,2]
[400054200,1767054641479,-471.93883825,0.00021917,2]
[400054201,1767054641488,-361.51873115,0.00021917,2]
[400054202,1767054641498,-231.02510062,0.00021917,2]
[400054203,1767054641507,-497.87877484,0.00021917,2]
[400054204,1767054641516,-486.63011465,0.00021917,2]
[400054205,1767054641525,-227.78362903,0.00021917,2]
[400054206,1767054641534,-177.90735047,0.00021917,2]
[400054207,1767054641544,-243.60402505,0.00021917,2]
[400054208,1767054641554,-331.17439079,0.00021917,2]
[400054209,1767054641563,-294.57638844,0.00021917,2]
[400054210,1767054641573,-392.55406506,0.00021917,2]
[400054211,1767054641583,-415.47903261,0.00021917,2]
[400054212,1767054641593,-488.92415349,0.00021917,2]
[400054213,1767054641603,-501.19543339,0.00021917,2]
[400054214,1767054641613,-197.12896296,0.00021917,2]
[400054215,1767054641622,-237.34653622,0.00021917,2]
[400054216,1767054641631,-244.31159298,0.00021917,2]
[400054217,1767054641640,-194.87945958,0.00021917,2]
[400054218,1767054641650,-415.36593718,0.00021917,2]
[400054219,1767054641660,-209.08726671,0.00021917,2]
[400054220,1767054641669,-438.8658737,0.00021917,2]
[400054221,1767054641678,-1185.68095469,0.00021917,2]
[400054222,1767054641688,-289.73431471,0.00021917,2]
[400054223,1767054641697,-216.23520641,0.00021917,2]
[400054224,1767054641708,-338.3045025,0.00021917,2]
[400054225,1767054641717,-566.74984132,0.00021917,2]
[400054226,1767054641726,-199.50718454,0.00021917,2]
[400054227,1767054641736,-158.60174501,0.00021917,2]
[400054228,1767054641745,-469.4075144,0.00021917,2]
[400054229,1767054641755,-296.20535928,0.00021917,2]
[400054230,1767054641764,-268.81198579,0.00021917,2]
[400054231,1767054641773,-332.28303991,0.00021917,2]
[400054232,1767054641782,-246.82914686,0.00021917,2]
[400054233,1767054641791,-469.94931329,0.00021917,2]
[400054234,1767054641801,-210.12873179,0.00021917,2]
[400054235,1767054641810,-447.58246298,0.00021917,2]
[400054236,1767054641820,-474.13507893,0.00021917,2]
[400054237,1767054641830,-328.30768993,0.00021917,2]
[400054238,1767054641839,-407.86933882,0.00021917,2]
[400054239,1767054641849,-284.44472802,0.00021917,2]
[400054240,1767054641858,-174.63658247,0.00021917,2]
[400054241,1767054641868,-312.71171079,0.00021917,2]
[400054242,1767054641878,-241.72242359,0.00021917,2]
[400054243,1767054641891,-282.47239194,0.00021917,2]
[400054244,1767054641901,-500.0,0.00021917,2]
[400054245,1767054641910,-500.0,0.00021917,2]
[400054246,1767054641919,-407.47489559,0.00021917,2]
[400054247,1767054641929,-241.0507779,0.00021917,2]
[400054248,1767054641938,-499.53568973,0.00021917,2]
[400054249,1767054641948,-500.0,0.00021917,2]
[400054250,1767054641958,-490.74108158,0.00021917,2]
[400054251,1767054641967,-407.85844134,0.00021917,2]
[400054252,1767054641977,-395.12698527,0.00021917,2]
[400054253,1767054641986,-239.67666409,0.00021917,2]
[400054254,1767054641995,-163.25279806,0.00021917,2]
[400054255,1767054642005,-236.94054092,0.00021917,2]
[400054256,1767054642014,-500.0,0.00021917,2]
[400054257,1767054642023,-183.26107061,0.00021917,2]
[400054258,1767054642033,-243.54881724,0.00021917,2]
[400054259,1767054642042,-260.5348626,0.00021917,2]
[400054260,1767054642052,-280.07760729,0.00021917,2]
[400054261,1767054642062,-500.0,0.00021917,2]
[400054262,1767054642071,-333.56161096,0.00021917,2]
[400054263,1767054642081,-622.69121472,0.00021917,2]
[400054264,1767054642090,-568.76309973,0.00021917,2]
[400054265,1767054642100,-191.35979133,0.00021917,2]
[400054266,1767054642110,-500.0,0.00021917,2]
[400054267,1767054642119,-201.43304431,0.00021917,2]
[400054268,1767054642129,-460.17636895,0.00021917,2]
[400054269,1767054642138,-350.93019086,0.00021917,2]
[400054270,1767054642148,-500.0,0.00021917,2]
[400054271,1767054642157,-893.04,0.00021917,2]
[400054272,1767054642166,-517.85628227,0.00021917,2]
[400054273,1767054642176,-164.63967481,0.00021917,2]
[400054274,1767054642186,-488.54130711,0.00021917,2]
[400054275,1767054642195,-225.73156657,0.00021917,2]
[400054276,1767054642206,-314.06516067,0.00021917,2]
[400054277,1767054642215,-423.95359119,0.00021917,2]
[400054278,1767054642224,-500.0,0.00021917,2]
[400054279,1767054642234,-451.7193611,0.00021917,2]
[400054280,1767054642243,-476.00274667,0.00021917,2]
[400054281,1767054642252,-467.99356264,0.00021917,2]